{"text_format":"3","workbook":"xlsx","n_sheets":3,"sheets":["Zadání","Zobrazení měsíce","Zobrazení týdne"],"not_rendered":{"images":4,"defined_names":16},"read":"whole","date_system":"1900"}

{"sheet":"Zadání","index":0,"n_rows":15,"n_cols":3,"rows_kept":15}
[null,"ZOBRAZENÍ MĚSÍCE","ZOBRAZENÍ TÝDNE"]
[null," ZADÁNÍ"]
[null,"POPIS","TERMÍN SPLNĚNÍ"]
[null,"Zadání 1",{"$f":"TODAY()","v":"2022-12-09"}]
[null,"Zadání 2",{"$f":"TODAY()+15","v":"2022-12-24"}]
[null,"Zadání 3",{"$f":"TODAY()+30","v":"2023-01-08"}]
[null,"Zadání 4",{"$f":"TODAY()+45","v":"2023-01-23"}]
[null,"Zadání 5",{"$f":"TODAY()+60","v":"2023-02-07"}]
[null,"Zadání 6",{"$f":"TODAY()+75","v":"2023-02-22"}]
[null,"Zadání 7",{"$f":"TODAY()+90","v":"2023-03-09"}]
[null,"Zadání 8",{"$f":"TODAY()+105","v":"2023-03-24"}]
[null,"Zadání 9",{"$f":"TODAY()+115","v":"2023-04-03"}]
[null,"Zadání 10",{"$f":"TODAY()+130","v":"2023-04-18"}]
[null,"Zadání 11",{"$f":"TODAY()+145","v":"2023-05-03"}]
[null,"Zadání 12",{"$f":"TODAY()+160","v":"2023-05-18"}]

{"sheet":"Zobrazení měsíce","index":1,"n_rows":17,"n_cols":8,"rows_kept":17}
[null,"ZADÁNÍ","ZOBRAZENÍ TÝDNE"]
[null,"Vyberte měsíc:","Zadejte rok:"]
[null,{"$f":"TEXT(TODAY(),\"mmmm\")","v":"prosinec"},{"$f":"YEAR(TODAY())","v":2022}]
[null," ZOBRAZENÍ MĚSÍCE"]
[null,"PONDĚLÍ","ÚTERÝ","STŘEDA","ČTVRTEK","PÁTEK","SOBOTA","NEDĚLE"]
[null,{"$f":"IF(WEEKDAY(DATEVALUE(\"1 \"&MěMěsíc&MěRok),2)=COLUMN(A$2),1,IF(LEN(A6)>0,A6+1,\"\"))","v":""},"","",1,2,3,4]
[null,{"$f":"IF(LEN(B6)=0,\"\",IF(COUNTIF(Úkoly[TERMÍN SPLNĚNÍ],DATE(MěRok,MěMěsícČ,B6))>0,\"Nastal termín splnění zadání!\",\"\"))","v":""},{"$f":"IF(LEN(C6)=0,\"\",IF(COUNTIF(Úkoly[TERMÍN SPLNĚNÍ],DATE(MěRok,MěMěsícČ,C6))>0,\"Nastal termín splnění zadání!\",\"\"))","v":""},{"$f":"IF(LEN(D6)=0,\"\",IF(COUNTIF(Úkoly[TERMÍN SPLNĚNÍ],DATE(MěRok,MěMěsícČ,D6))>0,\"Nastal termín splnění zadání!\",\"\"))","v":""},{"$f":"IF(LEN(E6)=0,\"\",IF(COUNTIF(Úkoly[TERMÍN SPLNĚNÍ],DATE(MěRok,MěMěsícČ,E6))>0,\"Nastal termín splnění zadání!\",\"\"))","v":""},{"$f":"IF(LEN(F6)=0,\"\",IF(COUNTIF(Úkoly[TERMÍN SPLNĚNÍ],DATE(MěRok,MěMěsícČ,F6))>0,\"Nastal termín splnění zadání!\",\"\"))","v":""},{"$f":"IF(LEN(G6)=0,\"\",IF(COUNTIF(Úkoly[TERMÍN SPLNĚNÍ],DATE(MěRok,MěMěsícČ,G6))>0,\"Nastal termín splnění zadání!\",\"\"))","v":""},{"$f":"IF(LEN(H6)=0,\"\",IF(COUNTIF(Úkoly[TERMÍN SPLNĚNÍ],DATE(MěRok,MěMěsícČ,H6))>0,\"Nastal termín splnění zadání!\",\"\"))","v":""}]
[null,{"$f":"IF(LEN(H6)>0,IF(H6=DAY(DATE(MěRok,MěMěsícČ+1,0)),\"\",H6+1),\"\")","v":5},{"$f":"IF(LEN(B8)>0,IF(B8=DAY(DATE(MěRok,MěMěsícČ+1,0)),\"\",B8+1),\"\")","v":6},7,8,9,10,11]
[null,{"$f":"IF(LEN(B8)=0,\"\",IF(COUNTIF(Úkoly[TERMÍN SPLNĚNÍ],DATE(MěRok,MěMěsícČ,B8))>0,\"Nastal termín splnění zadání!\",\"\"))","v":""},{"$f":"IF(LEN(C8)=0,\"\",IF(COUNTIF(Úkoly[TERMÍN SPLNĚNÍ],DATE(MěRok,MěMěsícČ,C8))>0,\"Nastal termín splnění zadání!\",\"\"))","v":""},{"$f":"IF(LEN(D8)=0,\"\",IF(COUNTIF(Úkoly[TERMÍN SPLNĚNÍ],DATE(MěRok,MěMěsícČ,D8))>0,\"Nastal termín splnění zadání!\",\"\"))","v":""},{"$f":"IF(LEN(E8)=0,\"\",IF(COUNTIF(Úkoly[TERMÍN SPLNĚNÍ],DATE(MěRok,MěMěsícČ,E8))>0,\"Nastal termín splnění zadání!\",\"\"))","v":""},{"$f":"IF(LEN(F8)=0,\"\",IF(COUNTIF(Úkoly[TERMÍN SPLNĚNÍ],DATE(MěRok,MěMěsícČ,F8))>0,\"Nastal termín splnění zadání!\",\"\"))","v":"Nastal termín splnění zadání!"},{"$f":"IF(LEN(G8)=0,\"\",IF(COUNTIF(Úkoly[TERMÍN SPLNĚNÍ],DATE(MěRok,MěMěsícČ,G8))>0,\"Nastal termín splnění zadání!\",\"\"))","v":""},{"$f":"IF(LEN(H8)=0,\"\",IF(COUNTIF(Úkoly[TERMÍN SPLNĚNÍ],DATE(MěRok,MěMěsícČ,H8))>0,\"Nastal termín splnění zadání!\",\"\"))","v":""}]
[null,{"$f":"IF(LEN(H8)>0,IF(H8=DAY(DATE(MěRok,MěMěsícČ+1,0)),\"\",H8+1),\"\")","v":12},{"$f":"IF(LEN(B10)>0,IF(B10=DAY(DATE(MěRok,MěMěsícČ+1,0)),\"\",B10+1),\"\")","v":13},14,15,16,17,18]
[null,{"$f":"IF(LEN(B10)=0,\"\",IF(COUNTIF(Úkoly[TERMÍN SPLNĚNÍ],DATE(MěRok,MěMěsícČ,B10))>0,\"Nastal termín splnění zadání!\",\"\"))","v":""},{"$f":"IF(LEN(C10)=0,\"\",IF(COUNTIF(Úkoly[TERMÍN SPLNĚNÍ],DATE(MěRok,MěMěsícČ,C10))>0,\"Nastal termín splnění zadání!\",\"\"))","v":""},{"$f":"IF(LEN(D10)=0,\"\",IF(COUNTIF(Úkoly[TERMÍN SPLNĚNÍ],DATE(MěRok,MěMěsícČ,D10))>0,\"Nastal termín splnění zadání!\",\"\"))","v":""},{"$f":"IF(LEN(E10)=0,\"\",IF(COUNTIF(Úkoly[TERMÍN SPLNĚNÍ],DATE(MěRok,MěMěsícČ,E10))>0,\"Nastal termín splnění zadání!\",\"\"))","v":""},{"$f":"IF(LEN(F10)=0,\"\",IF(COUNTIF(Úkoly[TERMÍN SPLNĚNÍ],DATE(MěRok,MěMěsícČ,F10))>0,\"Nastal termín splnění zadání!\",\"\"))","v":""},{"$f":"IF(LEN(G10)=0,\"\",IF(COUNTIF(Úkoly[TERMÍN SPLNĚNÍ],DATE(MěRok,MěMěsícČ,G10))>0,\"Nastal termín splnění zadání!\",\"\"))","v":""},{"$f":"IF(LEN(H10)=0,\"\",IF(COUNTIF(Úkoly[TERMÍN SPLNĚNÍ],DATE(MěRok,MěMěsícČ,H10))>0,\"Nastal termín splnění zadání!\",\"\"))","v":""}]
[null,{"$f":"IF(LEN(H10)>0,IF(H10=DAY(DATE(MěRok,MěMěsícČ+1,0)),\"\",H10+1),\"\")","v":19},{"$f":"IF(LEN(B12)>0,IF(B12=DAY(DATE(MěRok,MěMěsícČ+1,0)),\"\",B12+1),\"\")","v":20},21,22,23,24,25]
[null,{"$f":"IF(LEN(B12)=0,\"\",IF(COUNTIF(Úkoly[TERMÍN SPLNĚNÍ],DATE(MěRok,MěMěsícČ,B12))>0,\"Nastal termín splnění zadání!\",\"\"))","v":""},{"$f":"IF(LEN(C12)=0,\"\",IF(COUNTIF(Úkoly[TERMÍN SPLNĚNÍ],DATE(MěRok,MěMěsícČ,C12))>0,\"Nastal termín splnění zadání!\",\"\"))","v":""},{"$f":"IF(LEN(D12)=0,\"\",IF(COUNTIF(Úkoly[TERMÍN SPLNĚNÍ],DATE(MěRok,MěMěsícČ,D12))>0,\"Nastal termín splnění zadání!\",\"\"))","v":""},{"$f":"IF(LEN(E12)=0,\"\",IF(COUNTIF(Úkoly[TERMÍN SPLNĚNÍ],DATE(MěRok,MěMěsícČ,E12))>0,\"Nastal termín splnění zadání!\",\"\"))","v":""},{"$f":"IF(LEN(F12)=0,\"\",IF(COUNTIF(Úkoly[TERMÍN SPLNĚNÍ],DATE(MěRok,MěMěsícČ,F12))>0,\"Nastal termín splnění zadání!\",\"\"))","v":""},{"$f":"IF(LEN(G12)=0,\"\",IF(COUNTIF(Úkoly[TERMÍN SPLNĚNÍ],DATE(MěRok,MěMěsícČ,G12))>0,\"Nastal termín splnění zadání!\",\"\"))","v":"Nastal termín splnění zadání!"},{"$f":"IF(LEN(H12)=0,\"\",IF(COUNTIF(Úkoly[TERMÍN SPLNĚNÍ],DATE(MěRok,MěMěsícČ,H12))>0,\"Nastal termín splnění zadání!\",\"\"))","v":""}]
[null,{"$f":"IF(LEN(H12)>0,IF(H12=DAY(DATE(MěRok,MěMěsícČ+1,0)),\"\",H12+1),\"\")","v":26},{"$f":"IF(LEN(B14)>0,IF(B14=DAY(DATE(MěRok,MěMěsícČ+1,0)),\"\",B14+1),\"\")","v":27},28,29,30,31,""]
[null,{"$f":"IF(LEN(B14)=0,\"\",IF(COUNTIF(Úkoly[TERMÍN SPLNĚNÍ],DATE(MěRok,MěMěsícČ,B14))>0,\"Nastal termín splnění zadání!\",\"\"))","v":""},{"$f":"IF(LEN(C14)=0,\"\",IF(COUNTIF(Úkoly[TERMÍN SPLNĚNÍ],DATE(MěRok,MěMěsícČ,C14))>0,\"Nastal termín splnění zadání!\",\"\"))","v":""},{"$f":"IF(LEN(D14)=0,\"\",IF(COUNTIF(Úkoly[TERMÍN SPLNĚNÍ],DATE(MěRok,MěMěsícČ,D14))>0,\"Nastal termín splnění zadání!\",\"\"))","v":""},{"$f":"IF(LEN(E14)=0,\"\",IF(COUNTIF(Úkoly[TERMÍN SPLNĚNÍ],DATE(MěRok,MěMěsícČ,E14))>0,\"Nastal termín splnění zadání!\",\"\"))","v":""},{"$f":"IF(LEN(F14)=0,\"\",IF(COUNTIF(Úkoly[TERMÍN SPLNĚNÍ],DATE(MěRok,MěMěsícČ,F14))>0,\"Nastal termín splnění zadání!\",\"\"))","v":""},{"$f":"IF(LEN(G14)=0,\"\",IF(COUNTIF(Úkoly[TERMÍN SPLNĚNÍ],DATE(MěRok,MěMěsícČ,G14))>0,\"Nastal termín splnění zadání!\",\"\"))","v":""},{"$f":"IF(LEN(H14)=0,\"\",IF(COUNTIF(Úkoly[TERMÍN SPLNĚNÍ],DATE(MěRok,MěMěsícČ,H14))>0,\"Nastal termín splnění zadání!\",\"\"))","v":""}]
[null,{"$f":"IF(LEN(H14)>0,IF(H14=DAY(DATE(MěRok,MěMěsícČ+1,0)),\"\",H14+1),\"\")","v":""},{"$f":"IF(LEN(B16)>0,IF(B16=DAY(DATE(MěRok,MěMěsícČ+1,0)),\"\",B16+1),\"\")","v":""},"","","","",""]
[null,{"$f":"IF(LEN(B16)=0,\"\",IF(COUNTIF(Úkoly[TERMÍN SPLNĚNÍ],DATE(MěRok,MěMěsícČ,B16))>0,\"Nastal termín splnění zadání!\",\"\"))","v":""},{"$f":"IF(LEN(C16)=0,\"\",IF(COUNTIF(Úkoly[TERMÍN SPLNĚNÍ],DATE(MěRok,MěMěsícČ,C16))>0,\"Nastal termín splnění zadání!\",\"\"))","v":""},{"$f":"IF(LEN(D16)=0,\"\",IF(COUNTIF(Úkoly[TERMÍN SPLNĚNÍ],DATE(MěRok,MěMěsícČ,D16))>0,\"Nastal termín splnění zadání!\",\"\"))","v":""},{"$f":"IF(LEN(E16)=0,\"\",IF(COUNTIF(Úkoly[TERMÍN SPLNĚNÍ],DATE(MěRok,MěMěsícČ,E16))>0,\"Nastal termín splnění zadání!\",\"\"))","v":""},{"$f":"IF(LEN(F16)=0,\"\",IF(COUNTIF(Úkoly[TERMÍN SPLNĚNÍ],DATE(MěRok,MěMěsícČ,F16))>0,\"Nastal termín splnění zadání!\",\"\"))","v":""},{"$f":"IF(LEN(G16)=0,\"\",IF(COUNTIF(Úkoly[TERMÍN SPLNĚNÍ],DATE(MěRok,MěMěsícČ,G16))>0,\"Nastal termín splnění zadání!\",\"\"))","v":""},{"$f":"IF(LEN(H16)=0,\"\",IF(COUNTIF(Úkoly[TERMÍN SPLNĚNÍ],DATE(MěRok,MěMěsícČ,H16))>0,\"Nastal termín splnění zadání!\",\"\"))","v":""}]

{"sheet":"Zobrazení týdne","index":2,"n_rows":17,"n_cols":8,"rows_kept":17}
[null,"ZADÁNÍ","ZOBRAZENÍ MĚSÍCE"]
[null,"Vyberte měsíc:","Zadejte rok:","Vyberte číslo týdne:"]
[null,"Září",{"$f":"YEAR(TODAY())","v":2022},"1. týden"]
[null," ZOBRAZENÍ TÝDNE"]
[null,{"$f":"IF(WEEKDAY(DATEVALUE(\"1 \"&TýdMěsíc&TýdRok),2)=COLUMN(A$2),1,IF(LEN(A5)>0,A5+1,\"\"))","v":""},"","",1,2,3,4]
[null,{"$f":"IF(LEN(H5)>0,IF(H5=PosledníDenMěsíce_Týden,\"\",H5+1),\"\")","v":5},{"$f":"IF(LEN(B6)>0,IF(B6=PosledníDenMěsíce_Týden,\"\",B6+1),\"\")","v":6},7,8,9,10,11]
[null,{"$f":"IF(LEN(H6)>0,IF(H6=PosledníDenMěsíce_Týden,\"\",H6+1),\"\")","v":12},13,14,15,16,17,18]
[null,{"$f":"IF(LEN(H7)>0,IF(H7=PosledníDenMěsíce_Týden,\"\",H7+1),\"\")","v":19},20,21,22,23,24,25]
[null,{"$f":"IF(LEN(H8)>0,IF(H8=PosledníDenMěsíce_Týden,\"\",H8+1),\"\")","v":26},27,28,29,30,"",""]
[null,{"$f":"IF(LEN(H9)>0,IF(H9=PosledníDenMěsíce_Týden,\"\",H9+1),\"\")","v":""},"","","","","",""]
[null,"PONDĚLÍ","ÚTERÝ","STŘEDA","ČTVRTEK","PÁTEK","SOBOTA","NEDĚLE"]
[null,{"$f":"IF(B14=\"\",IF(AND(ISNUMBER(A12),A12<PosledníDenMěsíce_Týden),A12+1,\"\"),IF(B14<=7,\"\",INDEX(TýdMěsícZobr,TýdTýden,COLUMN(A$2))-7))","v":""},"","","","","",""]
[null,{"$f":"IF(LEN(B12)=0,\"\",IF(COUNTIF(Úkoly[TERMÍN SPLNĚNÍ],DATE(TýdRok,TýdMěsícČ,B12))>0,\"Nastal termín splnění zadání!\",\"\"))","v":""},{"$f":"IF(LEN(C12)=0,\"\",IF(COUNTIF(Úkoly[TERMÍN SPLNĚNÍ],DATE(TýdRok,TýdMěsícČ,C12))>0,\"Nastal termín splnění zadání!\",\"\"))","v":""},{"$f":"IF(LEN(D12)=0,\"\",IF(COUNTIF(Úkoly[TERMÍN SPLNĚNÍ],DATE(TýdRok,TýdMěsícČ,D12))>0,\"Nastal termín splnění zadání!\",\"\"))","v":""},{"$f":"IF(LEN(E12)=0,\"\",IF(COUNTIF(Úkoly[TERMÍN SPLNĚNÍ],DATE(TýdRok,TýdMěsícČ,E12))>0,\"Nastal termín splnění zadání!\",\"\"))","v":""},{"$f":"IF(LEN(F12)=0,\"\",IF(COUNTIF(Úkoly[TERMÍN SPLNĚNÍ],DATE(TýdRok,TýdMěsícČ,F12))>0,\"Nastal termín splnění zadání!\",\"\"))","v":""},{"$f":"IF(LEN(G12)=0,\"\",IF(COUNTIF(Úkoly[TERMÍN SPLNĚNÍ],DATE(TýdRok,TýdMěsícČ,G12))>0,\"Nastal termín splnění zadání!\",\"\"))","v":""},{"$f":"IF(LEN(H12)=0,\"\",IF(COUNTIF(Úkoly[TERMÍN SPLNĚNÍ],DATE(TýdRok,TýdMěsícČ,H12))>0,\"Nastal termín splnění zadání!\",\"\"))","v":""}]
[null,{"$f":"INDEX(TýdMěsícZobr,TýdTýden,COLUMN(A$2))","v":""},{"$f":"INDEX(TýdMěsícZobr,TýdTýden,COLUMN(B$2))","v":""},{"$f":"INDEX(TýdMěsícZobr,TýdTýden,COLUMN(C$2))","v":""},{"$f":"INDEX(TýdMěsícZobr,TýdTýden,COLUMN(D$2))","v":1},{"$f":"INDEX(TýdMěsícZobr,TýdTýden,COLUMN(E$2))","v":2},{"$f":"INDEX(TýdMěsícZobr,TýdTýden,COLUMN(F$2))","v":3},{"$f":"INDEX(TýdMěsícZobr,TýdTýden,COLUMN(G$2))","v":4}]
[null,{"$f":"IF(LEN(B14)=0,\"\",IF(COUNTIF(Úkoly[TERMÍN SPLNĚNÍ],DATE(TýdRok,TýdMěsícČ,B14))>0,\"Nastal termín splnění zadání!\",\"\"))","v":""},{"$f":"IF(LEN(C14)=0,\"\",IF(COUNTIF(Úkoly[TERMÍN SPLNĚNÍ],DATE(TýdRok,TýdMěsícČ,C14))>0,\"Nastal termín splnění zadání!\",\"\"))","v":""},{"$f":"IF(LEN(D14)=0,\"\",IF(COUNTIF(Úkoly[TERMÍN SPLNĚNÍ],DATE(TýdRok,TýdMěsícČ,D14))>0,\"Nastal termín splnění zadání!\",\"\"))","v":""},{"$f":"IF(LEN(E14)=0,\"\",IF(COUNTIF(Úkoly[TERMÍN SPLNĚNÍ],DATE(TýdRok,TýdMěsícČ,E14))>0,\"Nastal termín splnění zadání!\",\"\"))","v":""},{"$f":"IF(LEN(F14)=0,\"\",IF(COUNTIF(Úkoly[TERMÍN SPLNĚNÍ],DATE(TýdRok,TýdMěsícČ,F14))>0,\"Nastal termín splnění zadání!\",\"\"))","v":""},{"$f":"IF(LEN(G14)=0,\"\",IF(COUNTIF(Úkoly[TERMÍN SPLNĚNÍ],DATE(TýdRok,TýdMěsícČ,G14))>0,\"Nastal termín splnění zadání!\",\"\"))","v":""},{"$f":"IF(LEN(H14)=0,\"\",IF(COUNTIF(Úkoly[TERMÍN SPLNĚNÍ],DATE(TýdRok,TýdMěsícČ,H14))>0,\"Nastal termín splnění zadání!\",\"\"))","v":""}]
[null,{"$f":"IFERROR(IF(B14=\"\",IF(AND(ISNUMBER(A16),A16<PosledníDenMěsíce_Týden),A16+1,$H$14+COLUMN(A$2)),IF(B14+7>PosledníDenMěsíce_Týden,\"\",INDEX(TýdMěsícZobr,TýdTýden,COLUMN(A$2))+7)),\"\")","v":5},{"$f":"IFERROR(IF(C14=\"\",IF(AND(ISNUMBER(B16),B16<PosledníDenMěsíce_Týden),B16+1,$H$14+COLUMN(B$2)),IF(C14+7>PosledníDenMěsíce_Týden,\"\",INDEX(TýdMěsícZobr,TýdTýden,COLUMN(B$2))+7)),\"\")","v":6},{"$f":"IFERROR(IF(D14=\"\",IF(AND(ISNUMBER(C16),C16<PosledníDenMěsíce_Týden),C16+1,$H$14+COLUMN(C$2)),IF(D14+7>PosledníDenMěsíce_Týden,\"\",INDEX(TýdMěsícZobr,TýdTýden,COLUMN(C$2))+7)),\"\")","v":7},{"$f":"IFERROR(IF(E14=\"\",IF(AND(ISNUMBER(D16),D16<PosledníDenMěsíce_Týden),D16+1,$H$14+COLUMN(D$2)),IF(E14+7>PosledníDenMěsíce_Týden,\"\",INDEX(TýdMěsícZobr,TýdTýden,COLUMN(D$2))+7)),\"\")","v":8},{"$f":"IFERROR(IF(F14=\"\",IF(AND(ISNUMBER(E16),E16<PosledníDenMěsíce_Týden),E16+1,$H$14+COLUMN(E$2)),IF(F14+7>PosledníDenMěsíce_Týden,\"\",INDEX(TýdMěsícZobr,TýdTýden,COLUMN(E$2))+7)),\"\")","v":9},{"$f":"IFERROR(IF(G14=\"\",IF(AND(ISNUMBER(F16),F16<PosledníDenMěsíce_Týden),F16+1,$H$14+COLUMN(F$2)),IF(G14+7>PosledníDenMěsíce_Týden,\"\",INDEX(TýdMěsícZobr,TýdTýden,COLUMN(F$2))+7)),\"\")","v":10},{"$f":"IFERROR(IF(H14=\"\",IF(AND(ISNUMBER(G16),G16<PosledníDenMěsíce_Týden),G16+1,$H$14+COLUMN(G$2)),IF(H14+7>PosledníDenMěsíce_Týden,\"\",INDEX(TýdMěsícZobr,TýdTýden,COLUMN(G$2))+7)),\"\")","v":11}]
[null,{"$f":"IF(LEN(B16)=0,\"\",IF(COUNTIF(Úkoly[TERMÍN SPLNĚNÍ],DATE(TýdRok,TýdMěsícČ,B16))>0,\"Nastal termín splnění zadání!\",\"\"))","v":""},{"$f":"IF(LEN(C16)=0,\"\",IF(COUNTIF(Úkoly[TERMÍN SPLNĚNÍ],DATE(TýdRok,TýdMěsícČ,C16))>0,\"Nastal termín splnění zadání!\",\"\"))","v":""},{"$f":"IF(LEN(D16)=0,\"\",IF(COUNTIF(Úkoly[TERMÍN SPLNĚNÍ],DATE(TýdRok,TýdMěsícČ,D16))>0,\"Nastal termín splnění zadání!\",\"\"))","v":""},{"$f":"IF(LEN(E16)=0,\"\",IF(COUNTIF(Úkoly[TERMÍN SPLNĚNÍ],DATE(TýdRok,TýdMěsícČ,E16))>0,\"Nastal termín splnění zadání!\",\"\"))","v":""},{"$f":"IF(LEN(F16)=0,\"\",IF(COUNTIF(Úkoly[TERMÍN SPLNĚNÍ],DATE(TýdRok,TýdMěsícČ,F16))>0,\"Nastal termín splnění zadání!\",\"\"))","v":""},{"$f":"IF(LEN(G16)=0,\"\",IF(COUNTIF(Úkoly[TERMÍN SPLNĚNÍ],DATE(TýdRok,TýdMěsícČ,G16))>0,\"Nastal termín splnění zadání!\",\"\"))","v":""},{"$f":"IF(LEN(H16)=0,\"\",IF(COUNTIF(Úkoly[TERMÍN SPLNĚNÍ],DATE(TýdRok,TýdMěsícČ,H16))>0,\"Nastal termín splnění zadání!\",\"\"))","v":""}]